bitfinex-derivatives/quotes_ETHF0:USTF0_20260120
["timestamp","ask_amount","ask_price","bid_price","bid_amount"]
[1768926264586,1.5564,3029.6,3028.1,5.767]
[1768926264784,1.5564,3029.6,3028.1,9.41170792]
[1768926265487,1.5564,3029.6,3028.2,0.16526]
[1768926265689,1.5564,3029.6,3028.2,3.80996792]
[1768926267485,1.5564,3029.6,3028.3,0.16526]
[1768926267694,1.5564,3029.6,3028.5,3.80995792]
[1768926268490,1.5564,3029.6,3028.5,3.64470792]
[1768926268695,1.5564,3029.6,3028.6,5.766]
[1768926268990,1.5564,3029.6,3028.1,3.64470792]
[1768926269293,1.5564,3029.6,3028.2,5.766]
[1768926269694,1.5564,3029.6,3028.3,2.462]
[1768926269994,1.5564,3029.6,3028.3,5.766]
[1768926270784,1.5564,3029.6,3028.3,2.462]
[1768926270989,1.5564,3029.6,3028.2,0.16526]
[1768926271189,1.5564,3029.6,3028.3,5.765]
[1768926271491,1.5564,3029.6,3028.4,2.461]
[1768926271692,5.20010024,3029.6,3028.5,2.461]
[1768926272292,3.64370024,3029.5,3028.2,0.16526]
[1768926272693,3.64370024,3029.5,3028.2,2.62626]
[1768926273396,3.64370024,3029.5,3028.2,2.46]
[1768926273799,3.64370024,3029.5,3027.8,0.00399174]
[1768926273999,3.64370024,3029.5,3027.9,2.46]
[1768926278403,3.64370024,3029.5,3028.0,2.459]
[1768926279803,3.64370024,3029.5,3028.1,1.76837401]
[1768926281600,3.64370024,3029.5,3028.2,2.458]
[1768926282403,3.64370024,3029.5,3028.1,1.76837401]
[1768926282607,3.64370024,3029.5,3028.2,2.458]
[1768926282809,3.64370024,3029.5,3028.1,1.76837401]
[1768926283202,3.64370024,3029.5,3028.2,2.458]
[1768926283404,3.64370024,3029.5,3028.3,2.457]
[1768926283907,1.72159,3029.6,3028.3,2.457]
[1768926284308,1.72159,3029.6,3028.4,2.457]
[1768926286310,1.5564,3029.6,3028.4,2.457]
[1768926287916,1.5564,3029.6,3028.3,0.78]
[1768926288209,5.16461405,3029.6,3028.4,2.457]
[1768926289614,3.60821405,3029.5,3028.5,2.456]
[1768926290818,3.60821405,3029.5,3028.1,1.76837401]
[1768926291119,3.60821405,3029.5,3028.5,1.14602319]
[1768926293014,3.60821405,3029.5,3028.6,2.456]
[1768926293319,3.60821405,3029.5,3028.5,3.60202319]
[1768926293521,3.60821405,3029.4,3028.3,1.14602319]
[1768926293721,3.60821405,3029.4,3028.4,2.456]
[1768926294418,3.60821405,3029.4,3028.5,1.14602319]
[1768926295916,3.60821405,3029.2,3027.9,4.87225456]
[1768926296108,1.14602319,3029.3,3028.2,2.455]
[1768926296314,1.14602319,3029.6,3028.3,1.14602319]
[1768926296514,1.23783323,3029.5,3028.5,1.14602319]
[1768926296715,0.30001233,3029.4,3028.3,1.14602319]
[1768926296916,1.14602319,3029.4,3028.3,3.60102319]
[1768926299023,5.15621405,3029.5,3028.3,1.14602319]
[1768926299216,0.30025752,3029.4,3028.3,1.14602319]
[1768926299416,5.15621405,3029.5,3028.3,1.14602319]
[1768926299611,0.30013596,3029.4,3028.3,1.14602319]
[1768926299818,5.15621405,3029.5,3028.3,1.14602319]
[1768926300018,0.30012627,3029.4,3028.3,1.14602319]
[1768926300325,1.14602319,3029.0,3027.8,0.00399174]
[1768926300623,1.14602319,3029.0,3027.9,1.14602319]
[1768926300825,4.75423724,3029.0,3027.9,1.14602319]
[1768926301322,3.60821405,3029.3,3028.3,1.14602319]
[1768926301625,1.23772279,3029.2,3028.7,1.14602319]
[1768926301825,1.548,3029.5,3028.7,1.14602319]
[1768926302118,1.23782184,3029.4,3028.5,1.14602319]
[1768926302318,1.548,3029.5,3028.9,1.14602319]
[1768926302919,1.548,3029.5,3028.7,1.14602319]
[1768926303122,2.69402319,3029.5,3028.3,4.59951338]
[1768926303626,2.69402319,3029.5,3028.3,7.05251338]
[1768926303825,1.548,3029.5,3028.5,1.14602319]
[1768926304628,1.548,3029.5,3028.7,1.14602319]
[1768926305620,1.548,3029.5,3028.5,1.14602319]
[1768926306733,1.14602319,3029.3,3028.1,3.59802319]
[1768926307529,1.14602319,3029.3,3028.3,1.14602319]
[1768926308123,1.548,3029.5,3028.3,1.14602319]
[1768926308422,1.548,3029.5,3028.9,1.14602319]
[1768926308616,1.548,3029.5,3028.7,1.14602319]
[1768926309028,1.548,3029.5,3028.3,3.45349019]
[1768926309029,1.548,3029.5,3028.5,1.14602319]
[1768926309433,2.69402319,3029.5,3028.2,1.14602319]
[1768926309629,2.69402319,3029.5,3028.3,2.451]
[1768926309930,2.69402319,3029.5,3028.2,1.14602319]
[1768926310134,1.548,3029.5,3028.6,1.14602319]
[1768926311730,1.548,3029.5,3028.4,1.14602319]
[1768926311927,1.14602319,3029.4,3028.2,1.14602319]
[1768926312231,1.14602319,3029.2,3028.1,0.78]
[1768926313726,0.1652,3029.4,3028.1,0.78]
[1768926313727,1.14602319,3029.0,3028.1,0.78]
[1768926313930,1.14602319,3029.0,3027.8,1.15001493]
[1768926314131,1.14602319,3028.8,3027.8,1.15001493]
[1768926314528,1.14602319,3029.0,3027.8,1.15001493]
[1768926315231,1.14602319,3028.8,3027.8,1.15001493]
[1768926315629,1.14602319,3028.8,3027.8,0.00399174]
[1768926316027,1.14602319,3028.6,3027.8,0.00399174]
[1768926316735,1.14602319,3028.8,3027.8,0.00399174]
[1768926317223,0.16523,3028.9,3027.8,1.15001493]
[1768926319029,1.14602319,3028.8,3027.8,1.15001493]
[1768926319231,1.14602319,3028.6,3027.8,0.00399174]
[1768926321231,1.31127319,3028.6,3027.8,0.00399174]
[1768926322337,1.14602319,3028.2,3027.2,1.92602319]
[1768926322530,1.14602319,3028.2,3027.2,1.14602319]
[1768926323233,1.14602319,3028.2,3027.2,1.14910992]
[1768926324336,1.31128319,3028.4,3027.2,1.14910992]
[1768926325031,1.14602319,3028.2,3027.2,1.14910992]
[1768926325540,1.14602319,3028.2,3027.2,0.00308673]
[1768926325733,0.16526,3028.3,3027.2,0.00308673]
[1768926325734,1.14602319,3028.0,3027.2,0.00308673]
[1768926326839,1.14602319,3027.6,3027.2,0.00308673]
[1768926327040,1.14602319,3027.6,3026.6,0.78]
[1768926327234,1.14602319,3027.6,3026.7,1.14602319]
[1768926327439,1.14602319,3027.8,3026.4,3.58728229]
[1768926327737,0.16529,3027.9,3027.1,1.14602319]
[1768926327942,0.1692573,3027.9,3027.1,1.14974823]
[1768926330142,0.1692573,3027.9,3027.1,0.00372504]
[1768926330544,1.14602319,3027.8,3027.1,0.00372504]
[1768926331243,0.0039673,3027.9,3027.1,1.14974823]
[1768926331444,0.0039673,3027.9,3027.3,1.14602319]
[1768926331743,0.0039673,3027.9,3027.5,1.14602319]
[1768926332947,0.0039673,3027.9,3027.1,3.59100733]
[1768926333248,0.16522,3029.0,3027.1,3.59100733]
[1768926333539,0.16522,3029.0,3027.4,3.58728229]
[1768926334147,0.16858263,3029.0,3027.4,3.58728229]
[1768926337051,0.16523,3028.9,3027.4,3.58728229]
[1768926337547,0.16525,3028.6,3027.1,0.00372504]
[1768926337751,3.72223024,3028.6,3027.1,0.00372504]
[1768926338150,0.16529,3027.9,3027.1,0.00372504]
[1768926339554,0.16526,3028.3,3027.1,0.00372504]
[1768926339750,0.16527,3028.2,3027.1,0.00372504]
[1768926340249,0.16527,3028.1,3027.1,0.00372504]
[1768926340552,0.16528,3028.0,3027.1,0.00372504]
[1768926342355,0.16529,3027.9,3027.1,0.00372504]
[1768926343350,0.16529,3027.8,3027.1,0.00372504]
[1768926347957,0.16529,3027.7,3027.1,0.00372504]
[1768926348853,0.16529,3027.7,3026.5,3.53994462]
[1768926349961,0.16529,3027.7,3026.5,3.54412252]
[1768926350359,0.1653,3027.6,3026.5,0.0041779]
[1768926350566,0.16532,3027.3,3026.5,0.0041779]
[1768926351164,3.51372631,3027.6,3026.5,0.0041779]
[1768926351361,3.51372631,3027.3,3025.7,3.53994462]
[1768926351564,0.16534,3026.9,3025.7,3.53994462]
[1768926352459,0.16534,3026.9,3025.7,3.54337554]
[1768926354070,3.77717192,3027.3,3025.7,3.54337554]
[1768926354071,3.77717192,3027.3,3025.7,0.00343092]
[1768926354265,0.16535,3026.7,3025.7,0.00343092]
[1768926354461,0.16783959,3026.7,3025.7,0.00343092]
[1768926355765,3.51372631,3026.4,3024.7,3.53994462]
[1768926355971,0.16538,3026.2,3024.7,3.53994462]
[1768926356864,0.16538,3026.2,3024.7,3.54344409]
[1768926357669,0.16538,3026.2,3024.8,1.14831468]
[1768926359262,0.16538,3026.2,3024.7,3.54344409]
[1768926359462,0.16539,3026.0,3024.7,3.54344409]
[1768926360967,0.16535,3026.6,3025.2,3.53994462]
[1768926361168,0.16535,3026.6,3025.5,3.53994462]
[1768926361574,0.16536,3026.5,3025.1,3.53994462]
[1768926361766,0.16536,3026.5,3024.7,4.69175877]
[1768926361767,1.31368468,3026.3,3024.7,4.69175877]
[1768926361967,0.16538,3026.2,3024.8,3.53994462]
[1768926363068,0.16538,3026.2,3025.1,3.53994462]
[1768926363574,0.16783959,3026.7,3025.4,3.53994462]
[1768926364272,0.16536,3026.5,3025.4,3.53994462]
[1768926364471,4.66204099,3026.6,3024.8,3.53994462]
[1768926364671,1.14831468,3026.3,3024.8,3.53994462]
[1768926364872,0.16539,3026.0,3024.8,3.53994462]
[1768926366666,1.529,3025.9,3024.8,3.53994462]
[1768926368681,1.529,3025.9,3024.7,0.00349947]
[1768926368879,0.16542,3025.5,3024.7,0.00349947]
[1768926369787,0.16542,3025.5,3024.7,3.54344409]
[1768926369991,0.16542,3025.5,3024.7,0.00349947]
[1768926370688,0.16542,3025.4,3024.7,0.00349947]
[1768926370987,0.16543,3025.3,3024.7,0.00349947]
[1768926371192,0.16543,3025.3,3024.2,3.53994462]
[1768926372091,1.529,3025.9,3024.2,3.54325434]
[1768926372283,0.16537,3026.3,3024.8,3.53994462]
[1768926373188,0.16538,3026.2,3024.8,3.53994462]
[1768926373597,0.16538,3026.1,3024.8,3.53994462]
[1768926377097,0.00248959,3026.7,3024.8,3.53994462]
[1768926377393,0.00248959,3026.7,3025.2,1.77192641]
[1768926377597,0.00248959,3026.7,3025.3,3.70732781]
[1768926377795,0.16529,3027.8,3025.5,3.70732781]
[1768926378000,1.2313756,3027.7,3025.6,3.87273781]
[1768926378299,1.2313756,3027.6,3025.6,3.87273781]
[1768926378599,0.93279697,3027.5,3025.6,3.87273781]
[1768926378800,0.00371655,3027.5,3025.6,3.87273781]
[1768926379500,0.93377336,3027.4,3025.6,3.87273781]
[1768926379694,0.00371655,3027.5,3025.6,3.87273781]
[1768926379895,0.93379909,3027.4,3025.6,3.87273781]
[1768926380091,3.72659924,3027.5,3025.6,3.70732781]
[1768926380297,3.88820269,3027.3,3025.6,3.70732781]
[1768926381201,0.00371655,3027.5,3025.6,3.70732781]
[1768926381393,1.23369649,3027.4,3025.6,3.70732781]
[1768926381593,0.00371655,3027.5,3025.6,3.70732781]
[1768926381794,1.23369196,3027.4,3025.6,3.70732781]
[1768926381994,0.00371655,3027.5,3025.6,3.70732781]
[1768926382193,1.23371202,3027.4,3025.6,3.70732781]
[1768926382502,0.00371655,3027.5,3025.6,3.70732781]
[1768926382800,0.93441965,3027.4,3025.6,3.70732781]
[1768926383001,0.00371655,3027.5,3025.6,3.70732781]
[1768926383198,1.23338921,3027.4,3025.6,3.70732781]
[1768926383399,0.00371655,3027.5,3025.6,3.70732781]
[1768926383595,0.00371655,3027.5,3025.8,3.70732781]
[1768926385493,0.16531,3027.4,3025.8,3.70732781]
[1768926385700,0.16531,3027.4,3025.4,4.13820204]
[1768926385701,0.16531,3027.4,3025.9,9.44232781]
[1768926385901,0.16532,3027.3,3025.9,9.44232781]
[1768926386103,0.16532,3027.3,3025.9,3.70732781]
[1768926386292,0.16532,3027.2,3025.9,3.70732781]
[1768926390702,0.00371655,3027.5,3025.9,3.70732781]
[1768926393309,0.00371655,3027.5,3025.9,3.87271781]
[1768926393609,0.00371655,3027.5,3026.1,3.70732781]
[1768926393810,0.00371655,3027.5,3025.9,0.16539]
[1768926393811,0.00371655,3027.5,3026.3,3.70732781]
[1768926394199,0.16528,3028.0,3026.3,3.70732781]
[1768926394508,0.16528,3027.9,3026.5,3.70732781]
[1768926395112,0.16769108,3027.9,3026.5,3.71003052]
[1768926396509,0.16769108,3027.9,3026.5,6.13403052]
[1768926396705,0.16769108,3027.9,3026.6,3.70732781]
[1768926396910,0.16529,3027.8,3026.6,3.70732781]
[1768926397901,0.00241108,3027.9,3026.6,3.70732781]
[1768926399010,0.00241108,3027.9,3026.7,3.70732781]
[1768926400014,0.00241108,3027.9,3026.5,2.42570271]
[1768926401002,0.00241108,3027.9,3026.5,0.00270271]
[1768926402008,0.00241108,3027.9,3026.5,3.71003052]
[1768926402318,0.00241108,3027.9,3026.7,3.70732781]
[1768926404218,0.16769108,3027.9,3026.5,0.00270271]
[1768926405013,0.16769108,3027.9,3026.6,1.76966826]
[1768926405319,0.16769108,3027.9,3026.7,3.68469184]
[1768926407016,0.16769108,3027.9,3026.9,1.14723247]
[1768926407218,0.16769108,3027.9,3027.1,1.14723247]
[1768926408625,1.31492355,3027.9,3026.9,1.14723247]
[1768926408928,0.16769108,3027.9,3026.7,3.68469184]
[1768926420338,0.30043908,3027.8,3026.7,3.68469184]
[1768926420537,0.00241108,3027.9,3026.7,3.68469184]
[1768926422430,0.30081141,3027.8,3026.7,3.68469184]
[1768926422631,0.00241108,3027.9,3026.7,3.68469184]
[1768926422839,0.3008126,3027.8,3026.7,3.68469184]
[1768926423036,0.00241108,3027.9,3026.7,3.68469184]
[1768926423538,0.30083114,3027.8,3026.7,3.68469184]
[1768926423729,0.00241108,3027.9,3026.7,3.68469184]
[1768926423926,0.3008323,3027.8,3026.7,3.68469184]
[1768926424129,0.00241108,3027.9,3026.7,3.68469184]
[1768926424341,0.30084558,3027.8,3026.7,3.68469184]
[1768926424535,0.00241108,3027.9,3026.7,3.68469184]
[1768926424740,0.30083855,3027.8,3026.7,3.68469184]
[1768926424934,0.00241108,3027.9,3026.7,3.68469184]
[1768926425130,0.30081554,3027.8,3026.7,3.68469184]
[1768926425336,0.00241108,3027.9,3026.7,3.68469184]
[1768926425543,0.16525,3028.5,3026.7,3.68469184]
[1768926425842,1.24103956,3028.4,3026.7,3.68469184]
[1768926426138,1.24103956,3028.3,3026.7,3.68469184]
[1768926426333,0.30094286,3028.2,3027.1,3.68469184]
[1768926426535,0.00402811,3028.2,3027.1,3.68469184]
[1768926430837,0.00402811,3028.2,3027.5,1.14678338]
[1768926431136,0.00402811,3028.2,3027.1,4.83147522]
[1768926431334,0.00402811,3028.2,3027.3,1.14678338]
[1768926432243,0.00402811,3028.2,3027.7,1.14678338]
[1768926432540,0.00402811,3028.2,3027.7,4.83147522]
[1768926432942,0.00402811,3028.2,3027.5,1.14678338]
[1768926433549,0.00402811,3028.2,3027.3,4.83147522]
[1768926435741,0.00402811,3028.2,3027.5,1.14678338]
[1768926437538,0.16929811,3028.2,3027.3,4.83147522]
[1768926437747,0.16929811,3028.2,3027.1,1.14678338]
[1768926439449,0.16929811,3028.2,3027.3,1.14678338]
[1768926439847,0.16929811,3028.2,3027.3,4.53737042]
[1768926440146,0.16929811,3028.2,3027.7,4.53737042]
[1768926440147,0.00402811,3028.2,3027.7,4.53737042]
[1768926440745,0.00402811,3028.2,3027.7,3.39058704]
[1768926441043,0.00402811,3028.2,3027.5,1.14678338]
[1768926441243,0.00402811,3028.2,3027.3,4.53737042]
[1768926442042,0.00402811,3028.2,3027.5,1.14678338]
[1768926443346,0.16526,3028.4,3027.9,1.14678338]
[1768926443649,0.16523,3028.9,3027.9,1.14678338]
[1768926443848,1.2366555,3028.8,3027.9,1.14678338]
[1768926444045,1.2366555,3028.7,3027.9,1.14678338]
[1768926444244,1.23664919,3028.6,3027.5,1.14678338]
[1768926444444,0.30013556,3028.5,3027.5,1.14678338]
[1768926444752,0.00377612,3028.6,3027.5,1.14678338]
[1768926444956,0.16526,3028.4,3027.3,4.53737042]
[1768926445257,1.61216617,3028.3,3027.0,1.14678338]
[1768926445556,0.16527,3028.2,3027.0,4.53737042]
[1768926446650,1.61220761,3028.1,3026.8,1.14678338]
[1768926446857,1.31205338,3028.1,3026.8,1.14678338]
[1768926447550,1.14678338,3027.9,3026.8,1.14678338]
[1768926447850,0.16528,3028.0,3026.9,3.39058704]
[1768926448353,0.16528,3028.0,3027.0,1.14678338]
[1768926448652,0.16528,3028.0,3027.4,1.14678338]
[1768926449054,0.16528,3028.0,3027.2,1.14678338]
[1768926449353,0.16528,3028.0,3027.2,4.53737042]
[1768926449651,1.14678338,3028.5,3027.2,4.53737042]
[1768926449851,1.40237853,3028.4,3027.2,4.53737042]
[1768926450051,2.38390191,3028.3,3027.2,4.53737042]
[1768926450353,0.30025947,3028.2,3027.2,4.53737042]
[1768926450555,1.14678338,3028.3,3027.2,4.53737042]
[1768926450748,0.30032632,3028.2,3027.2,4.53737042]
[1768926450949,1.14678338,3028.3,3027.2,4.53737042]
[1768926450950,1.31204338,3028.3,3027.2,4.53737042]
[1768926451148,0.30032707,3028.2,3027.2,4.53737042]
[1768926451349,1.31204338,3028.3,3027.2,4.53737042]
[1768926451546,0.30036086,3028.2,3027.2,4.53737042]
[1768926451744,1.31204338,3028.3,3027.2,4.53737042]
[1768926451948,0.30038231,3028.2,3027.4,1.14678338]
[1768926452255,0.16526,3028.3,3027.4,1.14678338]
[1768926452454,0.46572583,3028.2,3026.9,3.39058704]
[1768926452649,0.16527,3028.2,3027.2,3.39058704]
[1768926452956,0.16527,3028.2,3027.3,1.14678338]
[1768926453154,0.16527,3028.2,3027.3,4.53737042]
[1768926454357,0.30072451,3028.1,3027.3,4.53737042]
[1768926454554,0.00377612,3028.6,3028.0,1.14678338]
[1768926454856,0.00377612,3028.6,3027.8,1.14678338]
[1768926455452,1.14678338,3028.2,3027.2,3.39058704]
[1768926455753,1.31204338,3028.4,3027.2,4.53737042]
[1768926455955,0.16526,3028.3,3027.2,4.53737042]
[1768926456753,0.16527,3028.1,3027.2,3.39058704]
[1768926457159,0.16527,3028.1,3027.2,4.53737042]
[1768926459760,1.14678338,3027.8,3026.7,4.53737042]
[1768926459960,0.16528,3027.9,3026.7,4.53737042]
[1768926460155,0.16528,3027.9,3026.9,1.14678338]
[1768926460755,0.16528,3027.9,3026.9,4.53737042]
[1768926460957,0.16528,3027.9,3027.0,3.39058704]
[1768926461157,0.16526,3028.4,3027.1,3.39058704]
[1768926461460,1.10359541,3028.3,3027.1,3.39058704]
[1768926461662,0.93833541,3028.2,3027.1,3.39058704]
[1768926464658,0.16526,3028.3,3027.1,3.39058704]
[1768926466660,0.29845242,3028.2,3027.1,3.39058704]
[1768926466864,0.16527,3028.2,3027.1,3.39058704]
[1768926467164,0.29844665,3028.1,3027.1,3.39058704]
[1768926467359,0.16527,3028.2,3027.1,3.39058704]
[1768926467558,0.29843739,3028.1,3027.1,3.39058704]
[1768926467759,0.16527,3028.2,3027.1,3.39058704]
[1768926467960,0.29836977,3028.1,3027.1,3.39058704]
[1768926468161,0.16527,3028.2,3027.1,3.39058704]
[1768926468361,0.29831365,3028.1,3027.1,3.39058704]
[1768926468669,0.16527,3028.2,3027.1,3.39058704]
[1768926468865,0.29825037,3028.1,3027.1,3.39058704]
[1768926469066,0.16527,3028.1,3026.8,1.14713179]
[1768926469460,0.16527,3028.1,3026.9,3.62126493]
[1768926478165,0.16528,3028.0,3026.9,3.62126493]
[1768926478967,0.16529,3027.9,3026.9,3.62126493]
[1768926479472,0.16529,3027.8,3026.5,1.1498345]
[1768926479664,0.16529,3027.8,3026.5,4.77109943]
[1768926479970,0.16529,3027.8,3026.6,3.62126493]
[1768926481164,6.05090791,3028.6,3026.9,3.62126493]
[1768926481465,0.16527,3028.1,3026.8,4.76839672]
[1768926481664,0.16527,3028.1,3026.8,3.62126493]
[1768926483776,0.16528,3028.0,3026.8,3.62126493]
[1768926485685,0.29828549,3027.9,3026.8,3.62126493]
[1768926485868,0.16528,3028.0,3026.8,3.62126493]
[1768926486069,0.29828554,3027.9,3026.8,3.62126493]
[1768926486369,0.16528,3028.0,3026.8,3.62126493]
[1768926486572,0.29831256,3027.9,3026.8,3.62126493]
[1768926486767,0.16528,3028.0,3026.8,3.62126493]
[1768926486966,0.29825592,3027.9,3026.8,3.62126493]
[1768926487168,0.16528,3028.0,3026.8,3.62126493]
[1768926487465,0.29820645,3027.9,3026.8,3.62126493]
[1768926487666,0.16528,3028.0,3026.8,3.62126493]
[1768926487868,0.29815526,3027.9,3026.8,3.62126493]
[1768926488072,0.16528,3028.0,3026.8,3.62126493]
[1768926488271,0.29803118,3027.9,3026.8,3.62126493]
[1768926488471,0.16528,3028.0,3026.8,3.62126493]
[1768926488673,0.29805042,3027.9,3026.8,3.62126493]
[1768926488875,0.16528,3028.0,3026.8,3.62126493]
[1768926490375,0.29808419,3027.9,3026.8,3.62126493]
[1768926490678,0.16528,3028.0,3026.8,3.62126493]
[1768926490875,0.29808295,3027.9,3026.8,3.62126493]
[1768926491082,0.16528,3027.9,3026.8,3.62126493]
[1768926491880,0.29805851,3027.8,3026.8,3.62126493]
[1768926492080,0.16529,3027.8,3026.8,3.62126493]
[1768926501382,0.1653,3027.6,3026.5,0.00270271]
[1768926501586,0.1653,3027.6,3026.5,3.67003083]
[1768926507585,4.9,3028.4,3026.5,3.67003083]
[1768926507586,1.14713179,3027.4,3026.5,3.67003083]
[1768926507793,0.16534,3026.8,3025.9,4.13820204]
[1768926507992,0.16534,3026.8,3025.8,3.66732812]
[1768926508803,0.16534,3026.8,3025.8,3.66993881]
[1768926509701,0.16535,3026.7,3025.8,3.66993881]
[1768926510099,0.16535,3026.7,3025.8,0.00261069]
[1768926510505,0.16536,3026.5,3025.8,0.00261069]
[1768926513499,0.16536,3026.5,3025.4,3.66732812]
[1768926514401,0.16536,3026.5,3025.4,3.6698394]
[1768926515006,0.16537,3026.4,3025.4,3.6698394]
[1768926515200,0.16538,3026.1,3025.4,0.00251128]
[1768926515602,0.16539,3025.9,3025.0,3.66732812]
[1768926515796,0.16539,3025.9,3024.5,3.66732812]
[1768926516001,0.16541,3025.7,3024.5,3.66732812]
[1768926516908,0.16541,3025.7,3024.5,3.67011115]
[1768926517708,0.26916111,3026.3,3024.5,3.67011115]
[1768926517709,0.16541,3025.6,3024.5,0.00278303]
[1768926518109,0.16541,3025.5,3024.5,0.00278303]
[1768926518311,0.16541,3025.5,3024.5,3.67011115]
[1768926518510,1.14713179,3026.2,3024.7,3.66732812]
[1768926519410,0.1654,3025.7,3024.7,3.66732812]
[1768926519609,0.16542,3025.5,3024.5,0.00278303]
[1768926520410,0.16542,3025.5,3024.5,3.67011115]
[1768926522707,1.14713179,3026.2,3024.7,3.66732812]
[1768926522906,0.16539,3025.9,3024.9,1.14875842]
[1768926524213,1.31415842,3025.8,3024.7,4.81608654]
[1768926525112,0.1654,3025.7,3024.7,4.81608654]
[1768926525316,0.16541,3025.6,3024.7,4.81608654]
[1768926525515,0.16541,3025.6,3024.7,1.14875842]
[1768926526517,1.14875842,3025.1,3024.5,0.00278303]
[1768926526809,0.16544,3025.2,3024.5,0.00278303]
[1768926527711,1.14875842,3025.1,3024.5,0.00278303]
[1768926527903,1.14875842,3024.7,3023.9,3.73478544]
[1768926528111,1.14875842,3024.7,3023.7,1.14875842]
[1768926528313,0.16545,3024.8,3023.7,1.14875842]
[1768926529017,0.16545,3024.8,3023.7,1.15255566]
[1768926529209,1.14875842,3024.7,3023.7,0.00379724]
[1768926529511,0.16545,3024.8,3024.0,1.14875842]
[1768926529920,0.16542,3025.4,3024.6,1.14875842]
[1768926531309,0.16539,3026.0,3025.3,1.14875842]
[1768926531815,0.16539,3026.0,3024.8,1.14875842]
[1768926531816,0.16539,3026.0,3025.1,4.88354386]
[1768926533018,0.16539,3026.0,3025.3,1.14875842]
[1768926533220,0.16539,3026.0,3025.1,4.88354386]
[1768926535017,1.14875842,3026.3,3025.3,1.14875842]
[1768926535218,0.16535,3026.6,3025.5,1.14875842]
[1768926535521,0.16535,3026.6,3025.7,1.14875842]
[1768926535923,0.16535,3026.6,3025.3,3.73478544]
[1768926535924,0.16535,3026.6,3025.5,3.73478544]
[1768926536115,0.16535,3026.6,3025.6,1.14875842]
[1768926538416,0.16535,3026.6,3025.8,1.14875842]
[1768926539316,1.14875842,3027.1,3026.0,1.14875842]
[1768926539519,0.93562795,3027.0,3026.0,1.14875842]
[1768926539717,0.16533,3027.0,3026.0,1.14875842]
[1768926540021,0.16534,3026.9,3026.0,0.00398471]
[1768926541022,0.16534,3026.9,3026.0,1.15274313]
[1768926541226,0.16534,3026.9,3026.2,1.14875842]
[1768926542723,0.00406761,3027.0,3026.4,1.14875842]
[1768926543024,0.16531,3027.5,3026.2,3.73478544]
[1768926544025,0.16889479,3027.5,3026.2,3.73478544]
[1768926544229,0.16532,3027.3,3026.2,3.73478544]
[1768926544732,0.16532,3027.2,3026.0,0.00398471]
[1768926545029,0.16533,3027.0,3026.0,3.73877015]
[1768926546233,0.16533,3027.0,3026.0,0.00398471]
[1768926548129,0.16533,3027.0,3026.0,3.73877015]
[1768926548331,0.00358479,3027.5,3026.0,3.73877015]
[1768926548831,0.16888479,3027.5,3026.0,3.73877015]
[1768926549335,0.16888479,3027.5,3026.3,3.73478544]
[1768926551836,3.59862984,3028.3,3026.3,3.73478544]
[1768926552037,0.16528,3028.0,3026.3,3.73478544]
[1768926552430,0.16528,3028.0,3026.7,3.73478544]
[1768926552829,0.16927017,3028.0,3026.7,3.73478544]
[1768926553337,0.16528,3027.9,3026.7,3.73478544]
[1768926553537,0.16528,3027.9,3026.3,3.73478544]
[1768926556437,0.16528,3027.9,3026.5,3.57460392]
[1768926556637,0.00399017,3028.0,3026.5,3.57460392]
[1768926562846,1.14736913,3027.9,3026.8,1.14736913]
[1768926565743,0.00399017,3028.0,3026.8,1.14736913]
[1768926565944,0.16927017,3028.0,3026.8,1.14736913]
[1768926566341,1.31264913,3027.9,3026.7,1.14736913]
[1768926571150,0.16528,3027.9,3026.9,1.14736913]
[1768926575455,1.31264913,3027.9,3026.9,1.14736913]
[1768926576057,0.16528,3027.9,3026.9,1.14736913]
[1768926576449,1.31264913,3027.9,3026.9,1.14736913]
[1768926577053,0.16528,3027.9,3026.9,1.14736913]
[1768926577556,1.31264913,3027.9,3026.9,1.14736913]
[1768926579567,0.16529,3027.8,3026.9,1.14736913]
[1768926582876,0.16529,3027.8,3026.5,4.72195561]
[1768926583086,0.16529,3027.8,3026.6,3.57460392]
[1768926585377,0.16529,3027.8,3026.8,1.14735169]
[1768926586778,0.16529,3027.7,3026.6,3.57460392]
[1768926593885,0.16529,3027.7,3026.7,1.14735169]
[1768926594077,0.16529,3027.7,3026.8,3.50087657]
[1768926594872,1.14735169,3027.2,3026.3,4.13820204]
[1768926595179,0.29835894,3027.1,3026.0,0.00398471]
[1768926595383,1.14735169,3027.2,3026.0,0.00398471]
[1768926595384,0.29835894,3027.0,3026.0,0.00398471]
[1768926595586,0.29835894,3026.9,3026.0,0.00398471]
[1768926595789,0.29835894,3026.8,3026.0,0.00398471]
[1768926595982,0.29835894,3026.7,3026.0,0.00398471]
[1768926596285,0.29835894,3026.6,3026.0,0.00398471]
[1768926596487,3.51908121,3027.4,3026.0,0.00398471]
[1768926596687,0.16534,3026.8,3026.0,0.00398471]
[1768926596878,0.48709847,3026.7,3026.0,0.00398471]
[1768926597079,0.48709847,3026.6,3026.0,0.00398471]
[1768926597279,0.48709847,3026.5,3026.0,0.00398471]
[1768926597577,0.48709847,3026.4,3026.0,0.00398471]
[1768926597777,0.48709847,3026.3,3026.0,0.00398471]
[1768926597986,0.16534,3026.8,3026.0,0.00398471]
[1768926598180,0.48690948,3026.7,3026.0,0.00398471]
[1768926598387,0.48690948,3026.6,3026.0,0.00398471]
[1768926598581,0.48690948,3026.5,3026.0,0.00398471]
[1768926598781,0.48690948,3026.4,3026.0,0.00398471]
[1768926598981,0.48690948,3026.3,3026.0,0.00398471]
[1768926599183,0.16534,3026.8,3026.0,0.00398471]
[1768926599379,0.48654209,3026.7,3026.0,0.00398471]
[1768926599687,0.48653827,3026.6,3026.0,0.00398471]
[1768926599886,0.48653827,3026.5,3026.0,0.00398471]
[1768926600087,0.48653827,3026.4,3026.0,0.00398471]
[1768926600392,0.48651732,3026.3,3025.5,5.87387657]
[1768926600590,0.48651732,3026.2,3025.1,3.50087657]
[1768926600887,0.48651732,3026.1,3025.2,4.64822826]
[1768926601081,0.48651732,3026.0,3025.2,3.50087657]
[1768926601280,0.48614756,3025.9,3025.2,3.50087657]
[1768926601481,0.16537,3026.4,3025.4,4.64822826]
[1768926601680,0.16533,3027.0,3025.8,3.50087657]
[1768926601881,0.48621509,3026.9,3026.1,3.50087657]
[1768926602086,0.16531,3027.4,3026.6,1.14735169]
[1768926602291,0.16927017,3028.0,3026.7,3.50087657]
[1768926602483,0.16927017,3028.0,3026.9,4.64822826]
[1768926602684,3.52307138,3028.0,3026.5,3.50087657]
[1768926602982,3.52307138,3028.0,3026.2,3.50087657]
[1768926602983,3.68437121,3027.8,3026.2,3.50087657]
[1768926603185,3.51908121,3027.8,3026.2,3.50087657]